Workbook

Sheet Bilgiler
A1: Id | B1: Birlik | C1: SağlıkTesisi | D1: Künye | E1: RaporNo | F1: Tür | G1: Cihaz | H1: Üretici | I1: Model | J1: Seri | K1: Lokasyon | L1: KalTarihi | M1: GeçTarihi | N1: RaporTarihi | O1: KalibrasyonYapan | P1: Ünvanı | Q1: ZimmetSahibi | R1: NezaretEden | S1: FizikselKontrol | T1: Uygun | U1: Uygunsuz | V1: Sınırlı | W1: UzmanGörüşü | X1: Yorum | Y1: Not
A2: 1 | B2: - | C2: SAĞLIK TESİSİ | D2: 43547 | E2: 1801500623 | F2: Tür31 | G2: ELEKTROKOTER | H2: SPECTRA | I2: OPTİA | J2: 1PO-2449 | K2: LOKASYON | L2: 2018-09-14 | M2: 2019-09-16 | N2: 2018-10-11 | O2: GÜNAY YÜKSEK | P2: BİYOMEDİKAL TEKNİKERİ | Q2: - | R2: - | S2: √ | T2: √ | U2: - | V2: - | W2: Cihazın toleranslar dahilinde çalıştığı tespit edilmiştir.
B4: GENEL RAPOR BİLGİLERİ
B5: Sayfa Sayısı | C5: 6
B6: Test Sayısı | C6: 12
B7: Biyomedikal Tür | C7: ELEKTRO CERRAHİ – DAMAR KAPAMA
B8: Lab. Sorumlusu | C8: SELMAN SABAZ
B9: Ünvanı | C9: Biyomedikal Mühendisi
B11: STANDART BİLGİLERİ
B12: 1. Standart | C12: TS ISO-60601-1
B13: 1. Standart Başlığı | C13: ELEKTRİKLİ TIBBİ DONANIM – Bölüm 1 - Temel Güvenlik ve Gerekli Performans İçin Genel Kurallar
B14: 1. Test Madde No | C14: Koruyucu Topraklama Direnci (Madde 8.6) Topraklama Kaçak Akımı (Madde 8.7) Gövde Kaçak Akımı (Madde 8.7) Hasta Kaçak Akımı (Madde 8.7) Hasta Yardımcı Kaçak Akımı (Madde 8.7) Uygulama Parçalarında Kaçak Akımı (Madde 8.7) Şebeke Gerilimi ( Madde 8 ) Cihaz Akımı (Madde 8 )
B15: 1. Test Başlığı | C15: Koruyucu Topraklama Direnci, Topraklama Kaçak Akımı, Şasi Kaçak Akımı, Hasta Kaçak Akımı, Hasta Yardımcı Kaçak Akımı, Uygulama Parçalarında Kaçak Akımı, Şebeke Gerilimi, Cihaz Akımı
B16: 1. Revizyon Tarihi | C16: 2010-06-01
B18: 2. Standart | C18: TS EN 60601-2-2
B19: 2. Standart Başlığı | C19: Elektrikli Tıbbi Donanım -Bölüm 2 - 2: Yüksek Frekanslı Cerrahi Donanımının Ve Gerekli Performansı İçin Belirli Özellikler
B20: 2. Test Madde No | C20: Güç Dağılımı Testi TS EN 60601-2-2 (Madde 50.1) HF Kaçak Testi TS EN 60601-2-2 (Madde 201.8.7.3.101) REM Alarm Testi TS EN 60601-2-2 (Madde 52)
B21: 2. Test Başlığı
B22: 2. Revizyon Tarihi | C22: Mar.2013
B24: 3. Standart
B25: 3. Standart Başlığı
B26: 3. Test Madde No
B27: 3. Test Başlığı
B28: 3. Revizyon Tarihi

Sheet İzlenebilirlik
A1: Id | B1: Id | C1: Kodu | D1: Cihaz | E1: Üretici | F1: Model | G1: Seri | H1: İzlenebilirlik | I1: SertifikaNo | J1: KalTarihi | K1: GecTarihi
A2: 1 | B2: 1 | C2: K100 | D2: Elektriksel Güvenlik Analizörü | E2: Fluke biomedical | F2: 3326947TA-ESA-620 | G2: 5458076 | H2: Fluke | I2: 46950 | J2: 2021-06-08 | K2: 2022-06-08
A3: 2 | B3: 2 | C3: K112 | D3: Elektrocerrahi Ünite Test Cihazı | E3: Fluke | F3: QA-ESMKIII | G3: 5460032 | H3: Fluke | I3: PC-EVT-HXH0DV2 | J3: 2021-06-11 | K3: 2022-06-11
A4: 3 | B4: 3 | C4: - | D4: - | E4: - | F4: - | G4: - | H4: - | I4: - | J4: 1991-09-20 | K4: 1991-09-20

Sheet Rapor
A1: BİYOMEDİKAL METROLOJİ RAPORU Biomedical Metrology Report | U1: Künye: | X1: =Bilgiler!D2 -> 0
U2: Rapor No: | X2: =Bilgiler!E2 -> 0
U3: Kal.Tar.: | X3: =Bilgiler!L2 -> 00:00:00
U4: Gec.Tar.: | X4: =Bilgiler!M2 -> 00:00:00
A5: HİZMET BİLGİLERİ | C5: Rapor No | G5: : | H5: =Bilgiler!E2 -> 0 | Q5: Rapor Tarihi | U5: : | V5: =Bilgiler!N2 -> 00:00:00
C7: Uygulama Yeri | K7: Laboratuvar | V7: Yerinde
H8: : | I8: Teslim Tutanak No | O8: : | T8: Nezaret Eden:
I9: Teslim Tarihi | O9: : | T9: =Bilgiler!R2 -> 0
A10: DONANIM BİLGİLERİ | C10: Birlik | E10: : | F10: =Bilgiler!B2 -> 0 | R10: Marka | T10: : | U10: =Bilgiler!H2 -> 0
C11: Sağlık Tesisi: | G11: =Bilgiler!C2 -> 0 | R11: Model | T11: : | U11: =Bilgiler!I2 -> 0
R12: Seri No | T12: : | U12: =Bilgiler!J2 -> 0
C13: Künye No | F13: : | G13: =Bilgiler!D2 -> 0 | R13: Zimmet Sahibi: | V13: =Bilgiler!Q2 -> 0
C14: Biyomedikal Tür: | H14: =IF(Bilgiler!F2 = "-",Bilgiler!C7,Bilgiler!F2) -> 0 | R14: Bulunduğu Yer: | V14: =Bilgiler!K2 -> 0
C16: Biyomedikal Tanım: | H16: =Bilgiler!G2 -> 0
A18: METROLOJİ BİLGİLERİ | C18: Test Sayısı | F18: : | G18: =Bilgiler!C6 -> 12 | R18: Rapor Sayfa No: | W18: =Bilgiler!C5 -> 6 | X18: Sayfa
J19: 1- | K19: =Bilgiler!C12 -> TS ISO-60601-1
C20: Referans Standartlar | I20: : | J20: 2- | K20: =Bilgiler!C18 -> TS EN 60601-2-2
J21: 3- | K21: =Bilgiler!C24 -> 
A22: HİZMET SONUCU | C22: Yukarıda künye bilgileri bulunan donanım sağlık hizmeti sunumunda;
M23: Kullanıma Uygundur.
M24: =Bilgiler!T2 -> 0
A27: GENEL DEĞERLENDİRME | C27: =Bilgiler!W2 -> 0
A32: İMZA MÜHÜR | C32: LABORATUVAR YÖNETİCİSİ / SORUMLU MÜDÜR
C33: ADI SOYADI | F33: : | G33: =Bilgiler!C8 -> SELMAN SABAZ
C34: ÜNVANI | F34: : | G34: =Bilgiler!C9 -> Biyomedikal Mühendisi
C35: İMZASI | F35: :
A37: BİLDİRİM | C37: Bu rapor; kapak sayfası dahil | I37: =Bilgiler!C5 -> 6 | J37: sayfadan ibaret olup yukarda künye bilgileri belirtilen biyomedikal donanıma özel düzenlenmiştir.
C38: Bu rapor tüm sayfaları ile bir bütün olup, laboratuarın yazılı izni olmadan kopyalanıp çoğaltılamaz. Gerektiğinde tam ve bütün nüshası laboratuardan talep edilir. Mühürsüz, elektronik imzasız veya ıslak imzasız sertifikalar geçersizdir. This certificate shall not be reproduced except with the permission of the laboratory. It can be provided by laboratory in case of request. Calibration certificate swith out signature and sealare not valid.
A43: BİYOMEDİKAL METROLOJİ RAPORU Biomedical Metrology Report | U43: Künye: | X43: =Bilgiler!D2 -> 0
U44: Rapor No: | X44: =Bilgiler!E2 -> 0
U45: Kal.Tar.: | X45: =Bilgiler!L2 -> 00:00:00
U46: Gec.Tar.: | X46: =Bilgiler!M2 -> 00:00:00
A47: TEST BİLGİLERİ | C47: Standart No | G47: : | H47: =Bilgiler!C12 -> TS ISO-60601-1 | T47: Revizyon Tarihi | Y47: : | Z47: =Bilgiler!C16 -> 2010-06-01
C48: Standart Başlığı | G48: : | H48: =Bilgiler!C13 -> ELEKTRİKLİ TIBBİ DONANIM – Bölüm 1 - Temel Güvenlik ve Gerekli Performans İçin Genel Kurallar | T48: Test Uyg. Tarihi | Y48: : | Z48: =Bilgiler!L2 -> 00:00:00
C49: Test Madde No | G49: : | H49: =Bilgiler!C14 -> Koruyucu Topraklama Direnci (Madde 8.6) Topraklama Kaçak Akımı (Madde 8.7) Gövde Kaçak Akımı (Madde 8.7) Hasta Kaçak Akımı (Madde 8.7) Hasta Yardımcı Kaçak Akımı (Madde 8.7) Uygulama Parçalarında Kaçak Akımı (Madde 8.7) Şebeke Gerilimi ( Madde 8 ) Cihaz Akımı (Madde 8 )
C50: Test Başlığı | G50: : | H50: Koruyucu Topraklama Direnci, Topraklama Kaçak Akımı, Şasi Kaçak Akımı, Hasta Kaçak Akımı, Hasta Yardımcı Kaçak Akımı, Uygulama Parçalarında Kaçak Akımı, Şebeke Gerilimi, Cihaz Akımı
A51: REFERANS DONANIM | C51: Biyomedikal Tanım | I51: : | J51: =İzlenebilirlik!C2 -> -
C52: Marka | E52: : | F52: =İzlenebilirlik!D2 -> - | P52: İzlenebilirlik | U52: : | V52: =İzlenebilirlik!G2 -> -
C53: Model | E53: : | F53: =İzlenebilirlik!E2 -> - | P53: Sertifika No | U53: : | V53: =İzlenebilirlik!H2 -> -
C54: Seri No | E54: : | F54: =İzlenebilirlik!F2 -> - | P54: Geçerlilik Tarihi | U54: : | V54: =IF(İzlenebilirlik!C2="-"," ",İzlenebilirlik!J2) -> 
A55: GÖZLEM BİLGİLERİ | C55: Gözlem Tanımı | J55: :
C56: Gözlenen Katalog Aralığı | J56: : | P56: Belirsizlik Tipi | T56: : | U56: B Tipi
C57: Belirsizlik Bileşenleri | K57: 1- | L57: Sıcaklık | O57: =RANDBETWEEN(18,25) -> 24 | P57: oC
J58: : | K58: 2- | L58: Nem | O58: =CONCATENATE("% ",RANDBETWEEN(40,65)) -> % 46
K59: 3- | L59: Basınç | O59: =CONCATENATE(RANDBETWEEN(80,120)," kPa") -> 110 kPa
A60: GÖZLEM SONUÇLARI
D61: ELEKTRİK GÜVENLİK TESTİ
D62: Test Tipi | L62: Ölçüm | P62: Alt Limit | T62: Üst Limit | X62: BF/CF | AA62: Sonuç
D63: Şebeke Gerilimi | L63: ='EGT Testi'!B2 -> 227 | P63: 207 V | T63: 253 V | X63: - | AA63: √
D64: Yük Akımı [A] | L64: ='EGT Testi'!C2 -> 1.009 | P64: 0 A | T64: 16 A | X64: - | AA64: √
D65: Toprak Direnci [ohm]@1A | L65: ='EGT Testi'!D2 -> 0.09 | P65: 0 Ω | T65: 0,2 Ω | X65: - | AA65: √
D66: Toprak Kaçak Akım-NC [µA] | L66: ='EGT Testi'!E2 -> 142 | P66: 0 μA | T66: 500 μA | X66: - | AA66: √
D67: Toprak Kaçak Akım-SFC [µA] | L67: ='EGT Testi'!F2 -> 752 | P67: 0 μA | T67: 1000 μA | X67: - | AA67: √
D68: Gövde Kaçak-NC- [µA] | L68: ='EGT Testi'!G2 -> 65 | P68: 0 μA | T68: 100 μA | X68: - | AA68: √
D69: Gövde Kaçak-SFC- PE [µA] | L69: ='EGT Testi'!H2 -> 251 | P69: 0 μA | T69: 500 μA | X69: - | AA69: √
D70: Gövde Kaçak-SFC-LINE [µA] | L70: ='EGT Testi'!I2 -> 411 | P70: 0 μA | T70: 500 μA | X70: - | AA70: √
D71: İzolasyon Direnci [MOhm] | L71: ='EGT Testi'!K2 -> 115 | P71: 50 mΩ | T71: - | X71: - | AA71: √
D72: Hasta Kaçak [mA] | L72: ='EGT Testi'!M2 -> 0.0053 | P72: 0 mA | T72: 0.01 | X72: BF | AA72: √
A75: BİYOMEDİKAL METROLOJİ RAPORU Biomedical Metrology Report | U75: Künye: | X75: =Bilgiler!$D$2 -> 0
U76: Rapor No: | X76: =Bilgiler!$E$2 -> 0
U77: Kal.Tar.: | X77: =Bilgiler!$L$2 -> 00:00:00
U78: Gec.Tar.: | X78: =Bilgiler!$M$2 -> 00:00:00
A79: TEST BİLGİLERİ | C79: Standart No | H79: : | I79: =Bilgiler!C18 -> TS EN 60601-2-2 | T79: Revizyon Tarihi | Y79: : | Z79: =Bilgiler!C22 -> Mar.2013
C80: Standart Başlığı | H80: : | I80: =Bilgiler!C19 -> Elektrikli Tıbbi Donanım -Bölüm 2 - 2: Yüksek Frekanslı Cerrahi Donanımının Ve Gerekli Performansı İçin Belirli Özellikler | T80: Test Uyg. Tarihi | Y80: : | Z80: =Bilgiler!L2 -> 00:00:00
C81: Test Madde No Ve Test Başlığı | H81: : | I81: =Bilgiler!C20 -> Güç Dağılımı Testi TS EN 60601-2-2 (Madde 50.1) HF Kaçak Testi TS EN 60601-2-2 (Madde 201.8.7.3.101) REM Alarm Testi TS EN 60601-2-2 (Madde 52)
A82: REFERANS DONANIM | C82: Biyomedikal Tanım | I82: : | J82: =İzlenebilirlik!C3 -> -
C83: Marka | E83: : | F83: =İzlenebilirlik!D3 -> - | P83: İzlenebilirlik | U83: : | V83: =İzlenebilirlik!G3 -> -
C84: Model | E84: : | F84: =İzlenebilirlik!E3 -> - | P84: Sertifika No | U84: : | V84: =İzlenebilirlik!H3 -> -
C85: Seri No | E85: : | F85: =İzlenebilirlik!F3 -> - | P85: Geçerlilik Tarihi | U85: : | V85: =IF(İzlenebilirlik!C3="-"," ",İzlenebilirlik!J3) -> 
A86: REFERANS DONANIM | C86: Biyomedikal Tanım | I86: : | J86: =İzlenebilirlik!C4 -> -
C87: Marka | E87: : | F87: =İzlenebilirlik!D4 -> - | P87: İzlenebilirlik | U87: : | V87: =İzlenebilirlik!G4 -> -
C88: Model | E88: : | F88: =İzlenebilirlik!E4 -> - | P88: Sertifika No | U88: : | V88: =İzlenebilirlik!H4 -> -
C89: Seri No | E89: : | F89: =İzlenebilirlik!F4 -> - | P89: Geçerlilik Tarihi | U89: : | V89: =IF(İzlenebilirlik!C4="-"," ",İzlenebilirlik!J4) -> 
A90: GÖZLEM BİLGİLERİ | C90: Gözlem Tanımı | J90: :
C91: Gözlenen Katalog Aralığı | J91: : | P91: Belirsizlik Tipi | U91: : | V91: B Tipi
C92: Belirsizlik Bileşenleri | K92: 1- | L92: Sıcaklık | O92: =O57 -> 24 | P92: oC
J93: : | K93: 2- | L93: Nem | O93: =O58 -> % 46
K94: 3- | L94: Basınç | O94: =O59:P59 -> 110 kPa
A95: GÖZLEM SONUÇLARI
D96: BİPOLAR GÜÇ DAĞILIM TESTİ (CUT) - AYARLANAN WATT = 50
O97: Ayarlanan Empedans (Ω) | S97: Ölçülen Güç (Watt) | V97: Belirsizlik | AB97: Sonuç
P98: 0 | T98: =IF(Bilgiler!S2="X"," ",IF('PERFORMANS Testi'!B$2="","0",'PERFORMANS Testi'!B2)) -> 0 | V98: =IF(Bilgiler!$S$2="X"," ",(SQRT((T98*0.02)^2+(0.005/SQRT(3))^2))/100) -> 2.886751346e-05 | AB98: √
P99: 20 | T99: =IF(Bilgiler!S2="X"," ",IF('PERFORMANS Testi'!C$2="",RANDBETWEEN(320,490)/100,'PERFORMANS Testi'!C2)) -> 3.97 | V99: =IF(Bilgiler!$S$2="X"," ",(SQRT((T99*0.02)^2+(0.005/SQRT(3))^2))/100) -> 0.0007945245958 | AB99: √
P100: 50 | T100: =IF(Bilgiler!S2="X"," ",IF('PERFORMANS Testi'!D$2="",RANDBETWEEN(5830,7200)/100,'PERFORMANS Testi'!D2)) -> 63.3 | V100: =IF(Bilgiler!$S$2="X"," ",(SQRT((T100*0.02)^2+(0.005/SQRT(3))^2))/100) -> 0.01266003291 | AB100: √
P101: 100 | T101: =IF(Bilgiler!S2="X"," ",IF('PERFORMANS Testi'!E$2="",RANDBETWEEN(3980,4680)/100,'PERFORMANS Testi'!E2)) -> 46.59 | V101: =IF(Bilgiler!$S$2="X"," ",(SQRT((T101*0.02)^2+(0.005/SQRT(3))^2))/100) -> 0.009318044716 | AB101: √
P102: 200 | T102: =IF(Bilgiler!S2="X"," ",IF('PERFORMANS Testi'!F$2="",RANDBETWEEN(2600,2789)/100,'PERFORMANS Testi'!F2)) -> 27.06 | V102: =IF(Bilgiler!$S$2="X"," ",(SQRT((T102*0.02)^2+(0.005/SQRT(3))^2))/100) -> 0.005412076989 | AB102: √
P103: 500 | T103: =IF(Bilgiler!S2="X"," ",IF('PERFORMANS Testi'!G$2="",RANDBETWEEN(3480,4124)/100,'PERFORMANS Testi'!G2)) -> 35.5 | V103: =IF(Bilgiler!$S$2="X"," ",(SQRT((T103*0.02)^2+(0.005/SQRT(3))^2))/100) -> 0.007100058685 | AB103: √
P104: 750 | T104: =IF(Bilgiler!S2="X"," ",IF('PERFORMANS Testi'!H$2="",RANDBETWEEN(2850,3287)/100,'PERFORMANS Testi'!H2)) -> 30.52 | V104: =IF(Bilgiler!$S$2="X"," ",(SQRT((T104*0.02)^2+(0.005/SQRT(3))^2))/100) -> 0.006104068261 | AB104: √
P105: 1000 | T105: =IF(Bilgiler!S2="X"," ",IF('PERFORMANS Testi'!I$2="",RANDBETWEEN(2290,3152)/100,'PERFORMANS Testi'!I2)) -> 23.71 | V105: =IF(Bilgiler!$S$2="X"," ",(SQRT((T105*0.02)^2+(0.005/SQRT(3))^2))/100) -> 0.004742087866 | AB105: √
A111: BİYOMEDİKAL METROLOJİ RAPORU Biomedical Metrology Report | U111: Künye: | X111: =Bilgiler!$D$2 -> 0
U112: Rapor No: | X112: =Bilgiler!$E$2 -> 0
U113: Kal.Tar.: | X113: =Bilgiler!$L$2 -> 00:00:00
U114: Gec.Tar.: | X114: =Bilgiler!$M$2 -> 00:00:00
D116: BİPOLAR GÜÇ DAĞILIM TESTİ (COAG) - AYARLANAN WATT = 50
O117: Ayarlanan Empedans (Ω) | S117: Ölçülen Güç (Watt) | V117: Belirsizlik | AB117: Sonuç
P118: 0 | T118: =IF(Bilgiler!S2="X"," ",IF('PERFORMANS Testi'!J$2="","0",'PERFORMANS Testi'!J2)) -> 0 | V118: =IF(Bilgiler!$S$2="X"," ",(SQRT((T118*0.02)^2+(0.005/SQRT(3))^2))/100) -> 2.886751346e-05 | AB118: √
P119: 20 | T119: =IF(Bilgiler!S2="X"," ",IF('PERFORMANS Testi'!K$2="",RANDBETWEEN(320,490)/100,'PERFORMANS Testi'!K2)) -> 4.22 | V119: =IF(Bilgiler!$S$2="X"," ",(SQRT((T119*0.02)^2+(0.005/SQRT(3))^2))/100) -> 0.0008444935366 | AB119: √
P120: 50 | T120: =IF(Bilgiler!S2="X"," ",IF('PERFORMANS Testi'!L$2="",RANDBETWEEN(5830,7200)/100,'PERFORMANS Testi'!L2)) -> 70.78 | V120: =IF(Bilgiler!$S$2="X"," ",(SQRT((T120*0.02)^2+(0.005/SQRT(3))^2))/100) -> 0.01415602943 | AB120: √
P121: 100 | T121: =IF(Bilgiler!S2="X"," ",IF('PERFORMANS Testi'!M$2="",RANDBETWEEN(3980,4680)/100,'PERFORMANS Testi'!M2)) -> 41.15 | V121: =IF(Bilgiler!$S$2="X"," ",(SQRT((T121*0.02)^2+(0.005/SQRT(3))^2))/100) -> 0.008230050628 | AB121: √
P122: 200 | T122: =IF(Bilgiler!S2="X"," ",IF('PERFORMANS Testi'!N$2="",RANDBETWEEN(2600,2789)/100,'PERFORMANS Testi'!N2)) -> 27.45 | V122: =IF(Bilgiler!$S$2="X"," ",(SQRT((T122*0.02)^2+(0.005/SQRT(3))^2))/100) -> 0.005490075895 | AB122: √
P123: 500 | T123: =IF(Bilgiler!S2="X"," ",IF('PERFORMANS Testi'!O$2="",RANDBETWEEN(3480,4124)/100,'PERFORMANS Testi'!O2)) -> 38.19 | V123: =IF(Bilgiler!$S$2="X"," ",(SQRT((T123*0.02)^2+(0.005/SQRT(3))^2))/100) -> 0.007638054552 | AB123: √
P124: 750 | T124: =IF(Bilgiler!S2="X"," ",IF('PERFORMANS Testi'!P$2="",RANDBETWEEN(2850,3287)/100,'PERFORMANS Testi'!P2)) -> 30.88 | V124: =IF(Bilgiler!$S$2="X"," ",(SQRT((T124*0.02)^2+(0.005/SQRT(3))^2))/100) -> 0.006176067465 | AB124: √
P125: 1000 | T125: =IF(Bilgiler!S2="X"," ",IF('PERFORMANS Testi'!Q$2="",RANDBETWEEN(2290,3152)/100,'PERFORMANS Testi'!Q2)) -> 25.96 | V125: =IF(Bilgiler!$S$2="X"," ",(SQRT((T125*0.02)^2+(0.005/SQRT(3))^2))/100) -> 0.005192080251 | AB125: √
D127: MONOPOLAR GÜÇ DAĞILIM TESTİ (COAG) - AYARLANAN WATT = 120
O128: Ayarlanan Empedans (Ω) | S128: Ölçülen Güç (Watt) | V128: Belirsizlik | AB128: Sonuç
P129: 0 | T129: =IF(Bilgiler!S2="X"," ",IF('PERFORMANS Testi'!R$2="","0",'PERFORMANS Testi'!R2)) -> 0 | V129: =IF(Bilgiler!$S$2="X"," ",(SQRT((T129*0.02)^2+(0.005/SQRT(3))^2))/100) -> 2.886751346e-05 | AB129: √
P130: 50 | T130: =IF(Bilgiler!S2="X"," ",IF('PERFORMANS Testi'!S$2="",RANDBETWEEN(890,970)/100,'PERFORMANS Testi'!S2)) -> 9.23 | V130: =IF(Bilgiler!$S$2="X"," ",(SQRT((T130*0.02)^2+(0.005/SQRT(3))^2))/100) -> 0.001846225699 | AB130: √
P131: 100 | T131: =IF(Bilgiler!S2="X"," ",IF('PERFORMANS Testi'!T$2="",RANDBETWEEN(1520,1856)/100,'PERFORMANS Testi'!T2)) -> 17.25 | V131: =IF(Bilgiler!$S$2="X"," ",(SQRT((T131*0.02)^2+(0.005/SQRT(3))^2))/100) -> 0.003450120771 | AB131: √
P132: 200 | T132: =IF(Bilgiler!S2="X"," ",IF('PERFORMANS Testi'!U$2="",RANDBETWEEN(2650,3800)/100,'PERFORMANS Testi'!U2)) -> 29.01 | V132: =IF(Bilgiler!$S$2="X"," ",(SQRT((T132*0.02)^2+(0.005/SQRT(3))^2))/100) -> 0.005802071814 | AB132: √
P133: 500 | T133: =IF(Bilgiler!S2="X"," ",IF('PERFORMANS Testi'!V$2="",RANDBETWEEN(11500,12500)/100,'PERFORMANS Testi'!V2)) -> 124.07 | V133: =IF(Bilgiler!$S$2="X"," ",(SQRT((T133*0.02)^2+(0.005/SQRT(3))^2))/100) -> 0.02481401679 | AB133: √
P134: 1000 | T134: =IF(Bilgiler!S2="X"," ",IF('PERFORMANS Testi'!W$2="",RANDBETWEEN(7340,8650)/100,'PERFORMANS Testi'!W2)) -> 78 | V134: =IF(Bilgiler!$S$2="X"," ",(SQRT((T134*0.02)^2+(0.005/SQRT(3))^2))/100) -> 0.01560002671 | AB134: √
P135: 1500 | T135: =IF(Bilgiler!S2="X"," ",IF('PERFORMANS Testi'!X$2="",RANDBETWEEN(9170,10373)/100,'PERFORMANS Testi'!X2)) -> 100.74 | V135: =IF(Bilgiler!$S$2="X"," ",(SQRT((T135*0.02)^2+(0.005/SQRT(3))^2))/100) -> 0.02014802068 | AB135: √
P136: 2000 | T136: =IF(Bilgiler!S2="X"," ",IF('PERFORMANS Testi'!Y$2="",RANDBETWEEN(8310,10480)/100,'PERFORMANS Testi'!Y2)) -> 103.55 | V136: =IF(Bilgiler!$S$2="X"," ",(SQRT((T136*0.02)^2+(0.005/SQRT(3))^2))/100) -> 0.02071002012 | AB136: √
D138: MONOPOLAR GÜÇ DAĞILIM TESTİ (CUT) - AYARLANAN WATT = 170
O139: Ayarlanan Empedans (Ω) | S139: Ölçülen Güç (Watt) | V139: Belirsizlik | AB139: Sonuç
P140: 0 | T140: =IF(Bilgiler!S2="X"," ",IF('PERFORMANS Testi'!Z$2="","0",'PERFORMANS Testi'!Z2)) -> 0 | V140: =IF(Bilgiler!$S$2="X"," ",(SQRT((S140*0.02)^2+(0.005/SQRT(3))^2))/100) -> 2.886751346e-05 | AB140: √
P141: 50 | T141: =IF(Bilgiler!S2="X"," ",IF('PERFORMANS Testi'!AA$2="",RANDBETWEEN(890,970)/100,'PERFORMANS Testi'!AA2)) -> 9.14 | V141: =IF(Bilgiler!$S$2="X"," ",(SQRT((T141*0.02)^2+(0.005/SQRT(3))^2))/100) -> 0.001828227922 | AB141: √
P142: 100 | T142: =IF(Bilgiler!S2="X"," ",IF('PERFORMANS Testi'!AB$2="",RANDBETWEEN(1520,1856)/100,'PERFORMANS Testi'!AB2)) -> 17.82 | V142: =IF(Bilgiler!$S$2="X"," ",(SQRT((T142*0.02)^2+(0.005/SQRT(3))^2))/100) -> 0.003564116908 | AB142: √
P143: 200 | T143: =IF(Bilgiler!S2="X"," ",IF('PERFORMANS Testi'!AC$2="",RANDBETWEEN(2650,3800)/100,'PERFORMANS Testi'!AC2)) -> 31.86 | V143: =IF(Bilgiler!$S$2="X"," ",(SQRT((T143*0.02)^2+(0.005/SQRT(3))^2))/100) -> 0.00637206539 | AB143: √
P144: 500 | T144: =IF(Bilgiler!S2="X"," ",IF('PERFORMANS Testi'!AD$2="",RANDBETWEEN(16500,17500)/100,'PERFORMANS Testi'!AD2)) -> 172 | V144: =IF(Bilgiler!$S$2="X"," ",(SQRT((T144*0.02)^2+(0.005/SQRT(3))^2))/100) -> 0.03440001211 | AB144: √
P145: 1000 | T145: =IF(Bilgiler!S2="X"," ",IF('PERFORMANS Testi'!AE$2="",RANDBETWEEN(7340,8650)/100,'PERFORMANS Testi'!AE2)) -> 79.47 | V145: =IF(Bilgiler!$S$2="X"," ",(SQRT((T145*0.02)^2+(0.005/SQRT(3))^2))/100) -> 0.01589402622 | AB145: √
P146: 1500 | T146: =IF(Bilgiler!S2="X"," ",IF('PERFORMANS Testi'!AF$2="",RANDBETWEEN(9170,10373)/100,'PERFORMANS Testi'!AF2)) -> 95.34 | V146: =IF(Bilgiler!$S$2="X"," ",(SQRT((T146*0.02)^2+(0.005/SQRT(3))^2))/100) -> 0.01906802185 | AB146: √
P147: 2000 | T147: =IF(Bilgiler!S2="X"," ",IF('PERFORMANS Testi'!AG$2="",RANDBETWEEN(8310,12480)/100,'PERFORMANS Testi'!AG2)) -> 124.06 | V147: =IF(Bilgiler!$S$2="X"," ",(SQRT((T147*0.02)^2+(0.005/SQRT(3))^2))/100) -> 0.02481201679 | AB147: √
A149: BİYOMEDİKAL METROLOJİ RAPORU Biomedical Metrology Report | U149: Künye: | X149: =Bilgiler!$D$2 -> 0
U150: Rapor No: | X150: =Bilgiler!$E$2 -> 0
U151: Kal.Tar.: | X151: =Bilgiler!$L$2 -> 00:00:00
U152: Gec.Tar.: | X152: =Bilgiler!$M$2 -> 00:00:00
D154: YÜKSEK FREKANS ÇIKIŞ TESTİ
D155: Nominal Güç (W): | J155: =IF(Bilgiler!S2="X"," ",IF('PERFORMANS Testi'!AH$2="",100,'PERFORMANS Testi'!AH2)) -> 100 | Q155: Nominal Yük (Ω): | W155: =IF(Bilgiler!S2="X"," ",IF('PERFORMANS Testi'!AI$2="",500,'PERFORMANS Testi'!AI2)) -> 500
D156: Kriter | M156: Ölçülen Akım (mA) | U156: Sonuç
D157: 424,85 - 469,57 mA | M157: =IF(Bilgiler!S2="X"," ",IF('PERFORMANS Testi'!AJ$2="",SQRT(100/500)*RANDBETWEEN(955,1045),'PERFORMANS Testi'!AJ2)) -> 443.1886731 | U157: =IF(Bilgiler!$S$2="X"," ",IF(OR(M157<-424.85,Q118>469.57),"X","√")) -> √
D158: Vrms [V] | M158: Vpeak [V] | U158: Vp-p [V]
D159: =(J155/M157)*1000 -> 225.6375356 | M159: =D159*RANDBETWEEN(14,16)/10 -> 338.4563034 | U159: =M159*RANDBETWEEN(18,22)/10 -> 609.221346
D161: YÜKSEK FREKANS AKIM KAÇAK TESTİ
D162: Isolated neutral lead | M162: ESU yük: YOK | U162: Mod : Std COAG 120W
D163: Kriter | M163: Ölçülen Akım (mA) | U163: Sonuç
D164: max 150.0 mA | M164: =IF(Bilgiler!S2="X"," ",IF('PERFORMANS Testi'!AK$2="",RANDBETWEEN(750,850)/10,'PERFORMANS Testi'!AK2)) -> 84.1 | U164: =IF(Bilgiler!$S$2="X"," ",IF(M164>150,"X","√")) -> √
D165: Dispersive neutral lead | M165: ESU yük: 200 OHM | U165: Mod:Pure CUT 300W
D166: Kriter | M166: Ölçülen Akım (mA) | U166: Sonuç
D167: max 150.0 mA | M167: =IF(Bilgiler!S2="X"," ",IF('PERFORMANS Testi'!AL$2="",RANDBETWEEN(750,850)/10,'PERFORMANS Testi'!AL2)) -> 83.5 | U167: =IF(Bilgiler!$S$2="X"," ",IF(M167>150,"X","√")) -> √
D168: IEC bipolar lead 1 leakage | M168: ESU yük: 100 OHM | U168: Mod : L.Hand ctl; Std COAG 120W
D169: Kriter | M169: Ölçülen Akım (mA) | U169: Sonuç
D170: max 150.0 mA | M170: =IF(Bilgiler!S2="X"," ",IF('PERFORMANS Testi'!AM$2="",RANDBETWEEN(750,850)/10,'PERFORMANS Testi'!AM2)) -> 78.1 | U170: =IF(Bilgiler!$S$2="X"," ",IF(M170>150,"X","√")) -> √
D171: IEC bipolar lead 2 leakage | M171: ESU yük: 100 OHM | U171: Mod : L.Hand ctl; Std COAG 120W
D172: Kriter | M172: Ölçülen Akım (mA) | U172: Sonuç
D173: max 150.0 mA | M173: =IF(Bilgiler!S2="X"," ",IF('PERFORMANS Testi'!AN$2="",RANDBETWEEN(750,850)/10,'PERFORMANS Testi'!AN2)) -> 83 | U173: =IF(Bilgiler!$S$2="X"," ",IF(M173>150,"X","√")) -> √
D175: RAM TEST
D176: Resistance Limit(s): 135 ± 5 Ω
D177: Değer Ω | M177: ALARM | U177: SONUÇ
D178: =IF(Bilgiler!S2="X"," ",IF('PERFORMANS Testi'!AO$2="",RANDBETWEEN(130,140),'PERFORMANS Testi'!AO2)) -> 140 | M178: =IF(Bilgiler!$S$2="X"," ",IF(OR(D178<-130,D178>140),"DUYULMADI","DUYULDU")) -> DUYULDU | U178: =IF(Bilgiler!$S$2="X"," ",IF(M178="DUYULDU","√","X")) -> √
D180: MONOPOLAR GÜÇ TESTİ (CUT)
D181: Ayarlanan Değer (Watt) | I181: Ölçülen Değer (Watt) | N181: Sapma (Watt) | S181: Belirsizlik (Watt) | W181: Sonuç | Z181: Tolerans
D183: 50 | I183: =RANDBETWEEN(D183*97,D183*103)/100 -> 51.18 | N183: =I183-D183 -> 1.18 | S183: =IF(Bilgiler!$S$2="X"," ",(SQRT((I183*0.02)^2+(0.005/SQRT(3))^2))/100) -> 0.01023604071 | W183: √ | Z183: ± %5 veya 10W'dan (hangisi daha küçükse)
D184: 150 | I184: =RANDBETWEEN(D184*97,D184*103)/100 -> 150.44 | N184: =I184-D184 -> 0.44 | S184: =IF(Bilgiler!$S$2="X"," ",(SQRT((I184*0.02)^2+(0.005/SQRT(3))^2))/100) -> 0.03008801385 | W184: √
D185: 300 | I185: 296.33 | N185: -3.67 | S185: =IF(Bilgiler!$S$2="X"," ",(SQRT((I185*0.02)^2+(0.005/SQRT(3))^2))/100) -> 0.05926600703 | W185: √
D187: MONOPOLAR GÜÇ TESTİ (COAG)
D188: Ayarlanan Değer (Watt) | I188: Ölçülen Değer (Watt) | N188: Sapma (Watt) | S188: Belirsizlik (Watt) | W188: Sonuç | Z188: Tolerans
D190: 30 | I190: =RANDBETWEEN(D190*97,D190*103)/100 -> 29.16 | N190: =I190-D190 -> -0.84 | S190: =IF(Bilgiler!$S$2="X"," ",(SQRT((I190*0.02)^2+(0.005/SQRT(3))^2))/100) -> 0.005832071444 | W190: √ | Z190: ± %5 veya 10W'dan (hangisi daha küçükse)
D191: 80 | I191: =RANDBETWEEN(D191*97,D191*103)/100 -> 81.34 | N191: =I191-D191 -> 1.34 | S191: =IF(Bilgiler!$S$2="X"," ",(SQRT((I191*0.02)^2+(0.005/SQRT(3))^2))/100) -> 0.01626802561 | W191: √
D192: 120 | I192: 116.63 | N192: -3.37 | S192: =IF(Bilgiler!$S$2="X"," ",(SQRT((I192*0.02)^2+(0.005/SQRT(3))^2))/100) -> 0.02332601786 | W192: √
A195: BİYOMEDİKAL METROLOJİ RAPORU Biomedical Metrology Report | U195: Künye: | X195: =Bilgiler!$D$2 -> 0
U196: Rapor No: | X196: =Bilgiler!$E$2 -> 0
U197: Kal.Tar.: | X197: =Bilgiler!$L$2 -> 00:00:00
U198: Gec.Tar.: | X198: =Bilgiler!$M$2 -> 00:00:00
D200: BİPOLAR GÜÇ TESTİ
D201: Ayarlanan Değer (Watt) | I201: Ölçülen Değer (Watt) | N201: Sapma (Watt) | S201: Belirsizlik (Watt) | W201: Sonuç | Z201: Tolerans
D203: 20 | I203: =RANDBETWEEN(D203*97,D203*103)/100 -> 19.47 | N203: =I203-D203 -> -0.53 | S203: =IF(Bilgiler!$S$2="X"," ",(SQRT((I203*0.02)^2+(0.005/SQRT(3))^2))/100) -> 0.003894107001 | W203: √ | Z203: ± %5 veya 10W'dan (hangisi daha küçükse)
D204: 40 | I204: =RANDBETWEEN(D204*97,D204*103)/100 -> 39.31 | N204: =I204-D204 -> -0.69 | S204: =IF(Bilgiler!$S$2="X"," ",(SQRT((I204*0.02)^2+(0.005/SQRT(3))^2))/100) -> 0.007862052997 | W204: √
D205: 70 | I205: 69.64 | N205: -0.36 | S205: =IF(Bilgiler!$S$2="X"," ",(SQRT((I205*0.02)^2+(0.005/SQRT(3))^2))/100) -> 0.01392802992 | W205: √
D208: FİZİKSEL KONTROL
D209: Kontrol Edilen Bölgeler | AA209: Sonuç
D210: Şase Dış Muhafaza | AA210: =IF(Bilgiler!$S$2="X",IF('PERFORMANS Testi'!$AP$2="","√",'PERFORMANS Testi'!$AP$2),"√") -> √
D211: Gösterge ve LCD ekran ve paneller | AA211: =IF(Bilgiler!$S$2="X",IF('PERFORMANS Testi'!$AQ$2="","√",'PERFORMANS Testi'!$AQ$2),"√") -> √
D212: Montaj ve Yerleşimler | AA212: =IF(Bilgiler!$S$2="X",IF('PERFORMANS Testi'!$AR$2="","√",'PERFORMANS Testi'!$AR$2),"√") -> √
D213: Besleme, Elektrik kablo ve prizleri | AA213: =IF(Bilgiler!$S$2="X",IF('PERFORMANS Testi'!$AS$2="","√",'PERFORMANS Testi'!$AS$2),"√") -> √
D214: Butonlar, düğmeler | AA214: =IF(Bilgiler!$S$2="X",IF('PERFORMANS Testi'!$AT$2="","√",'PERFORMANS Testi'!$AT$2),"√") -> √
D215: Alarm ses ve lamba/ledleri | AA215: =IF(Bilgiler!$S$2="X",IF('PERFORMANS Testi'!$AU$2="","√",'PERFORMANS Testi'!$AU$2),"√") -> √
D216: Pil – Akü ve Batarya Fiziksel kontrol | AA216: =IF(Bilgiler!$S$2="X",IF('PERFORMANS Testi'!$AV$2="","√",'PERFORMANS Testi'!$AV$2),"√") -> √
D217: Tekerlek ve frenler | AA217: =IF(Bilgiler!$S$2="X",IF('PERFORMANS Testi'!$AW$2="","√",'PERFORMANS Testi'!$AW$2),"√") -> √
D218: Etiketler ve Uyarı İşaretleri | AA218: =IF(Bilgiler!$S$2="X",IF('PERFORMANS Testi'!$AX$2="","√",'PERFORMANS Testi'!$AX$2),"√") -> √
A232: UZMAN GÖRÜŞÜ | C232: =CONCATENATE('EGT Testi'!N2,"",Bilgiler!W2) -> Cihaz; IEC60601-1 standartlarına göre Elektriksel Güvenlik Ölçüm testlerinden geçmiştir. | Q232: TESTİ UYGULAYAN | S232: Adı Soyadı: | V232: =Bilgiler!O2 -> 0
S233: Ünvanı: | V233: =Bilgiler!P2 -> 0
S234: İmza:

Sheet EGT Testi
A1: Id | B1: ŞEBEKE GERİLİMİ [v] | C1: YÜK AKIMI [a] | D1: TOPRAK DİRENCİ | E1: TOPRAK-KACAK-NC-µA | F1: TOPRAK-KACAK-SFC-µA | G1: GÖVDE-KAÇAK-NC | H1: GÖVDE-KAÇAK-SFC-PE | I1: GÖVDE-KAÇAK-SFC-LINE | J1: GÜÇ | K1: İZOLASYON-DİRENCİ | L1: EKİPMAN-KAÇAK µA | M1: HASTA-KACAK | N1: EGT UZMAN GÖRÜŞÜ
A2: 1 | B2: =RANDBETWEEN(207,245) -> 227 | C2: =RANDBETWEEN(0,16)/100+RANDBETWEEN(100,900)/1000 -> 1.009 | D2: =RANDBETWEEN(0,2)/50+RANDBETWEEN(1,10)/100 -> 0.09 | E2: =RANDBETWEEN(20,480) -> 142 | F2: =RANDBETWEEN(20,980) -> 752 | G2: =RANDBETWEEN(4,92) -> 65 | H2: =RANDBETWEEN(40,420) -> 251 | I2: =RANDBETWEEN(40,420) -> 411 | J2: =RANDBETWEEN(40,150)+RANDBETWEEN(1,9)/10 -> 72.7 | K2: =RANDBETWEEN(81,120) -> 115 | L2: =RANDBETWEEN(68,385) -> 71 | M2: =RANDBETWEEN(8,98)/10000 -> 0.0053 | N2: Cihaz; IEC60601-1 standartlarına göre Elektriksel Güvenlik Ölçüm testlerinden geçmiştir.

Sheet PERFORMANS Testi
A1: id | B1: O1 | C1: O2 | D1: O3 | E1: O4 | F1: O5 | G1: O6 | H1: O7 | I1: O8 | J1: O9 | K1: O10 | L1: O11 | M1: O12 | N1: O13 | O1: O14 | P1: O15 | Q1: O16 | R1: O17 | S1: O18 | T1: O19 | U1: O20 | V1: O21 | W1: O22 | X1: O23 | Y1: O24 | Z1: O25 | AA1: O26 | AB1: O27 | AC1: O28 | AD1: O29 | AE1: O30 | AF1: O31 | AG1: O32 | AH1: O33 | AI1: O34 | AJ1: O35 | AK1: O36 | AL1: O37 | AM1: O38 | AN1: O39 | AO1: O40 | AP1: O41 | AQ1: O42 | AR1: O43 | AS1: O44 | AT1: O45 | AU1: O46 | AV1: O47 | AW1: O48 | AX1: O49 | AY1: O50 | AZ1: rapor_no
A2: 1
B3: 0 | C3: 20 | D3: 50 | E3: 100 | F3: 200 | G3: 500 | H3: 750 | I3: 1000 | J3: 0 | K3: 20 | L3: 50 | M3: 100 | N3: 200 | O3: 500 | P3: 750 | Q3: 1000 | R3: 0 | S3: 50 | T3: 100 | U3: 200 | V3: 500 | W3: 1000 | X3: 1500 | Y3: 2000 | Z3: 0 | AA3: 50 | AB3: 100 | AC3: 200 | AD3: 500 | AE3: 1000 | AF3: 1500 | AG3: 2000 | AH3: Nominal Güç (W) | AI3: Nominal Yük (Ω) | AJ3: Ölçülen | AK3: Isolated neutral lead | AL3: Dispersive neutral lead | AM3: IEC bipolar lead 1 leakage | AN3: IEC bipolar lead 2 leakage | AO3: Ölçülen | AP3: F1 | AQ3: F2 | AR3: F3 | AS3: F4 | AT3: F5 | AU3: F6 | AV3: F7 | AW3: F8 | AX3: F9
B4: BİPOLAR GÜÇ DAĞILIM TESTİ (CUT) | J4: BİPOLAR GÜÇ DAĞILIM TESTİ (COAG) | R4: MONOPOLAR GÜÇ DAĞILIM TESTİ (COAG) | Z4: MONOPOLAR GÜÇ DAĞILIM TESTİ (CUT) | AH4: YÜKSEK FREKANS ÇIKIŞ TESTİ | AK4: YÜKSEK FREKANS AKIM KAÇAK TESTİ | AO4: RAM TEST | AP4: FİZİKSEL KONTROL
